fUSD/lending_fUSD_20241013
["ID","MTS","AMOUNT","RATE_DAILY","PERIOD"]
[340219683,1728852640495,-1034.04,0.00010999,2]
[340219684,1728852640504,-1034.04,0.00010999,2]
[340219685,1728852640513,-1034.04,0.00010999,2]
[340219686,1728852640523,-1034.04,0.00010999,2]
[340219687,1728852640534,-1034.04,0.00010999,2]
[340219688,1728852640545,-1034.04,0.00010999,2]
[340219689,1728852640554,-1034.04,0.00010999,2]
[340219690,1728852640563,-1034.04,0.00010999,2]
[340219691,1728852640573,-1034.04,0.00010999,2]
[340219692,1728852640582,-1034.04,0.00010999,2]
[340219693,1728852640593,-1034.04,0.00010999,2]
[340219694,1728852640603,-1034.04,0.00010999,2]
[340219695,1728852640614,-1034.04,0.00010999,2]
[340219696,1728852640624,-1174.57,0.00010999,2]
[340219697,1728852640634,-1174.57,0.00010999,2]
[340219698,1728852640644,-1174.57,0.00010999,2]
[340219699,1728852640655,-1174.57,0.00010999,2]
[340219700,1728852640667,-1174.57,0.00010999,2]
[340219701,1728852640676,-1174.57,0.00010999,2]
[340219702,1728852640686,-1174.57,0.00010999,2]
[340219703,1728852640696,-1174.57,0.00010999,2]
[340219704,1728852640706,-1174.57,0.00010999,2]
[340219705,1728852640716,-1174.57,0.00010999,2]
[340219706,1728852640727,-1174.57,0.00010999,2]
[340219707,1728852640736,-1174.57,0.00010999,2]
[340219708,1728852640745,-1174.57,0.00010999,2]
[340219709,1728852640755,-1174.57,0.00010999,2]
[340219710,1728852640766,-1174.57,0.00010999,2]
[340219711,1728852640776,-1174.57,0.00010999,2]
[340219712,1728852640787,-1174.57,0.00010999,2]
[340219713,1728852640796,-1174.57,0.00010999,2]
[340219714,1728852640805,-1174.57,0.00010999,2]
[340219715,1728852640815,-1174.57,0.00010999,2]
[340219716,1728852640825,-1174.57,0.00010999,2]
[340219717,1728852640834,-1174.57,0.00010999,2]
[340219718,1728852640844,-1174.57,0.00010999,2]
[340219719,1728852640854,-1174.59,0.00010999,2]
[340219720,1728852640865,-1021.49,0.00010999,2]
[340219721,1728852640876,-1021.49,0.00010999,2]
[340219722,1728852640886,-1021.49,0.00010999,2]
[340219723,1728852640897,-1021.49,0.00010999,2]
[340219724,1728852640907,-1021.49,0.00010999,2]
[340219725,1728852640917,-1021.49,0.00010999,2]
[340219726,1728852640927,-938.02,0.00010999,2]
[340219727,1728852640938,-1021.49,0.00010999,2]
[340219728,1728852640949,-938.02,0.00010999,2]
[340219729,1728852640959,-1021.49,0.00010999,2]
[340219730,1728852640969,-938.02,0.00010999,2]
[340219731,1728852640979,-1021.49,0.00010999,2]
[340219732,1728852640988,-938.02,0.00010999,2]
[340219733,1728852640997,-1021.49,0.00010999,2]
[340219734,1728852641006,-938.02,0.00010999,2]
[340219735,1728852641017,-1021.49,0.00010999,2]
[340219736,1728852641027,-938.02,0.00010999,2]
[340219737,1728852641036,-1021.49,0.00010999,2]
[340219738,1728852641046,-938.02,0.00010999,2]
[340219739,1728852641055,-1021.49,0.00010999,2]
[340219740,1728852641064,-938.02,0.00010999,2]
[340219741,1728852641073,-1021.49,0.00010999,2]
[340219742,1728852641083,-938.02,0.00010999,2]
[340219743,1728852641091,-1021.49,0.00010999,2]
[340219744,1728852641101,-938.02,0.00010999,2]
[340219745,1728852641110,-1021.49,0.00010999,2]
[340219746,1728852641120,-938.02,0.00010999,2]
[340219747,1728852641131,-1021.49,0.00010999,2]
[340219748,1728852641141,-938.02,0.00010999,2]
[340219749,1728852641155,-1021.49,0.00010999,2]
[340219750,1728852641165,-938.02,0.00010999,2]
[340219751,1728852641175,-1021.49,0.00010999,2]
[340219752,1728852641185,-938.02,0.00010999,2]
[340219753,1728852641195,-1021.49,0.00010999,2]
[340219754,1728852641205,-938.02,0.00010999,2]
[340219755,1728852641215,-1021.49,0.00010999,2]
[340219756,1728852641225,-938.02,0.00010999,2]
[340219757,1728852641235,-1021.49,0.00010999,2]
[340219758,1728852641244,-938.02,0.00010999,2]
[340219759,1728852641256,-1021.49,0.00010999,2]
[340219760,1728852641268,-938.02,0.00010999,2]
[340219761,1728852641280,-1021.65,0.00010999,2]
[340219762,1728852641291,-938.02,0.00010999,2]
[340219763,1728852641303,-938.02,0.00010999,2]
[340219764,1728852641314,-938.02,0.00010999,2]
[340219765,1728852641325,-938.07,0.00010999,2]
[340219766,1728852641335,-1043.57,0.00010999,2]
[340219767,1728852641344,-1043.57,0.00010999,2]
[340219768,1728852641356,-1043.57,0.00010999,2]
[340219769,1728852641367,-1043.57,0.00010999,2]
[340219770,1728852641377,-1043.57,0.00010999,2]
[340219771,1728852641388,-1043.57,0.00010999,2]
[340219772,1728852641398,-1043.57,0.00010999,2]
[340219773,1728852641409,-1043.57,0.00010999,2]
[340219774,1728852641420,-1043.57,0.00010999,2]
[340219775,1728852641431,-1043.57,0.00010999,2]
[340219776,1728852641442,-1043.57,0.00010999,2]
[340219777,1728852641453,-1043.57,0.00010999,2]
[340219778,1728852641464,-1043.57,0.00010999,2]
[340219779,1728852641474,-1043.57,0.00010999,2]
[340219780,1728852641486,-1043.57,0.00010999,2]
[340219781,1728852641497,-1043.57,0.00010999,2]
[340219782,1728852641508,-1043.57,0.00010999,2]
[340219783,1728852641519,-1043.57,0.00010999,2]
[340219784,1728852641529,-1043.57,0.00010999,2]
[340219785,1728852641540,-1043.57,0.00010999,2]
[340219786,1728852641551,-1043.57,0.00010999,2]
[340219787,1728852641562,-1043.57,0.00010999,2]
[340219788,1728852641572,-1043.57,0.00010999,2]
[340219789,1728852641583,-1043.57,0.00010999,2]
[340219790,1728852641594,-856.26,0.00010999,2]
[340219791,1728852641606,-856.26,0.00010999,2]
[340219792,1728852641616,-856.26,0.00010999,2]
[340219793,1728852641626,-856.26,0.00010999,2]
[340219794,1728852641637,-856.26,0.00010999,2]
[340219795,1728852641647,-856.26,0.00010999,2]
[340219796,1728852641657,-856.26,0.00010999,2]
[340219797,1728852641666,-856.26,0.00010999,2]
[340219798,1728852641676,-856.26,0.00010999,2]
[340219799,1728852641686,-856.26,0.00010999,2]
[340219800,1728852641697,-856.26,0.00010999,2]
[340219801,1728852641706,-856.26,0.00010999,2]
[340219802,1728852641717,-856.26,0.00010999,2]
[340219803,1728852641729,-856.26,0.00010999,2]
[340219804,1728852641739,-856.26,0.00010999,2]
[340219805,1728852641751,-856.26,0.00010999,2]
[340219806,1728852641762,-856.26,0.00010999,2]
[340219807,1728852641772,-856.26,0.00010999,2]
[340219808,1728852641784,-856.26,0.00010999,2]
[340219809,1728852641796,-856.26,0.00010999,2]
[340219810,1728852641809,-856.26,0.00010999,2]
[340219811,1728852641820,-856.47,0.00010999,2]
[340219812,1728852641832,-1203.39,0.00010999,2]
[340219813,1728852641844,-1203.39,0.00010999,2]
[340219814,1728852641854,-1203.39,0.00010999,2]
[340219815,1728852641864,-1203.39,0.00010999,2]
[340219816,1728852641874,-1203.39,0.00010999,2]
[340219817,1728852641883,-1203.39,0.00010999,2]
[340219818,1728852641893,-1203.39,0.00010999,2]
[340219819,1728852641903,-1203.39,0.00010999,2]
[340219820,1728852641913,-1203.39,0.00010999,2]
[340219821,1728852641925,-966.4,0.00010999,2]
[340219822,1728852641936,-1203.39,0.00010999,2]
[340219823,1728852641947,-966.4,0.00010999,2]
[340219824,1728852641958,-1203.39,0.00010999,2]
[340219825,1728852641969,-966.4,0.00010999,2]
[340219826,1728852641979,-1203.39,0.00010999,2]
[340219827,1728852641988,-966.4,0.00010999,2]
[340219828,1728852642000,-966.4,0.00010999,2]
[340219829,1728852642011,-1203.39,0.00010999,2]
[340219830,1728852642022,-966.4,0.00010999,2]
[340219831,1728852642032,-1203.39,0.00010999,2]
[340219832,1728852642044,-1203.39,0.00010999,2]
[340219833,1728852642054,-966.4,0.00010999,2]
[340219834,1728852642065,-1203.39,0.00010999,2]
[340219835,1728852642075,-966.4,0.00010999,2]
[340219836,1728852642085,-1203.39,0.00010999,2]
[340219837,1728852642095,-966.4,0.00010999,2]
[340219838,1728852642105,-1203.39,0.00010999,2]
[340219839,1728852642116,-966.4,0.00010999,2]
[340219840,1728852642126,-966.4,0.00010999,2]
[340219841,1728852642136,-1203.39,0.00010999,2]
[340219842,1728852642150,-966.4,0.00010999,2]
[340219843,1728852642161,-1203.39,0.00010999,2]
[340219844,1728852642172,-966.4,0.00010999,2]
[340219845,1728852642183,-1203.39,0.00010999,2]
[340219846,1728852642196,-966.4,0.00010999,2]
[340219847,1728852642207,-1203.39,0.00010999,2]
[340219848,1728852642221,-966.4,0.00010999,2]
[340219849,1728852642231,-1203.39,0.00010999,2]
[340219850,1728852642242,-966.4,0.00010999,2]
[340219851,1728852642252,-1203.54,0.00010999,2]
[340219852,1728852642263,-966.4,0.00010999,2]
[340219853,1728852642273,-966.4,0.00010999,2]
[340219854,1728852642284,-966.4,0.00010999,2]
[340219855,1728852642294,-966.4,0.00010999,2]
[340219857,1728852642305,-966.4,0.00010999,2]
[340219859,1728852642316,-966.56,0.00010999,2]
[340219861,1728852642326,-697.8,0.00010999,2]
[340219863,1728852642336,-697.8,0.00010999,2]
[340219864,1728852642346,-697.8,0.00010999,2]
[340219866,1728852642357,-697.8,0.00010999,2]
[340219868,1728852642367,-697.8,0.00010999,2]
[340219869,1728852642379,-697.8,0.00010999,2]
[340219870,1728852642389,-697.8,0.00010999,2]
[340219871,1728852642400,-697.8,0.00010999,2]
[340219872,1728852642411,-697.8,0.00010999,2]
[340219873,1728852642422,-697.8,0.00010999,2]
[340219874,1728852642432,-697.8,0.00010999,2]
[340219875,1728852642443,-697.8,0.00010999,2]
[340219876,1728852642454,-697.8,0.00010999,2]
[340219877,1728852642464,-697.8,0.00010999,2]
[340219878,1728852642475,-697.8,0.00010999,2]
[340219880,1728852642486,-697.8,0.00010999,2]
[340219882,1728852642497,-697.8,0.00010999,2]
[340219884,1728852642507,-697.8,0.00010999,2]
[340219885,1728852642517,-697.8,0.00010999,2]
[340219886,1728852642528,-697.8,0.00010999,2]
[340219887,1728852642539,-697.8,0.00010999,2]
[340219888,1728852642549,-697.82,0.00010999,2]
[340219889,1728852642560,-2246.29,0.00010999,2]
[340219891,1728852642570,-500.0,0.00010999,2]
[340219892,1728852642581,-500.0,0.00010999,2]
[340219893,1728852642592,-500.0,0.00010999,2]
[340219895,1728852642602,-500.0,0.00010999,2]
[340219897,1728852642612,-191.22178854,0.00010999,2]
[340219899,1728852642623,-976.76,0.00010999,2]
[340219900,1728852642634,-976.76,0.00010999,2]
[340219901,1728852642644,-976.76,0.00010999,2]
[340219902,1728852642655,-976.76,0.00010999,2]
[340219903,1728852642666,-976.76,0.00010999,2]
[340219904,1728852642677,-976.76,0.00010999,2]
[340219905,1728852642688,-976.76,0.00010999,2]
[340219906,1728852642699,-976.76,0.00010999,2]
[340219907,1728852642711,-976.76,0.00010999,2]
[340219908,1728852642723,-976.76,0.00010999,2]
[340219909,1728852642733,-976.76,0.00010999,2]
[340219910,1728852642744,-976.76,0.00010999,2]
[340219911,1728852642754,-976.76,0.00010999,2]
[340219912,1728852642764,-976.76,0.00010999,2]
[340219913,1728852642773,-976.76,0.00010999,2]
[340219914,1728852642783,-976.76,0.00010999,2]
[340219915,1728852642938,-500.0,0.00010999,2]
[340219916,1728852642949,-976.76,0.00010999,2]
[340219917,1728852642959,-500.0,0.00010999,2]
[340219918,1728852642969,-976.76,0.00010999,2]
[340219919,1728852642979,-976.76,0.00010999,2]
[340219920,1728852642988,-500.0,0.00010999,2]
[340219921,1728852642998,-976.76,0.00010999,2]
[340219922,1728852643008,-474.06,0.00010999,2]
[340219923,1728852643017,-976.76,0.00010999,2]
[340219924,1728852643027,-976.76,0.00010999,2]
[340219925,1728852643037,-93.63393806,0.00010999,2]
[340219926,1728852643063,-883.12606194,0.00010999,2]
[340219927,1728852643073,-115.0339087,0.00010999,2]
[340219928,1728852643084,-861.7260913,0.00010999,2]
[340219929,1728852643092,-196.24124758,0.00010999,2]
[340219930,1728852643104,-303.75875242,0.00010999,2]
[340219931,1728852643114,-453.16566183,0.00010999,2]
[340219932,1728852643131,-46.83433817,0.00010999,2]
[340219933,1728852643140,-500.0,0.00010999,2]
[340219936,1728852643154,-500.0,0.00010999,2]
[340219937,1728852643163,-500.0,0.00010999,2]
[340219939,1728852643173,-500.0,0.00010999,2]
[340219941,1728852643182,-500.0,0.00010999,2]
[340219942,1728852643191,-500.0,0.00010999,2]
[340219943,1728852643200,-500.0,0.00010999,2]
[340219944,1728852643210,-500.0,0.00010999,2]
[340219945,1728852643219,-500.0,0.00010999,2]
[340219946,1728852643229,-500.0,0.00010999,2]
[340219947,1728852643238,-500.0,0.00010999,2]
[340219948,1728852643248,-500.0,0.00010999,2]
[340219949,1728852643257,-500.0,0.00010999,2]
[340219950,1728852643267,-296.69,0.00010999,2]
[340219951,1728852643277,-1272.98,0.00010999,2]
[340219952,1728852643286,-885.36580958,0.00010999,2]
[340219953,1728852643297,-252.04409526,0.00010999,2]
[340219954,1728852643309,-135.57009516,0.00010999,2]
[340219955,1728852643318,-1125.7440536,0.00010999,2]
[340219956,1728852643331,-147.2359464,0.00010999,2]
[340219957,1728852643340,-145.11410888,0.00010999,2]
[340219958,1728852643352,-1056.8695,0.00010999,2]
[340219961,1728852645626,-70.99639112,0.00010999,2]
[340219962,1728852645635,-179.00360888,0.00010999,2]
[340219965,1728852957769,177.04,8.728e-05,2]
[340219966,1728852959147,471.0,8.992e-05,2]
[340219967,1728853202071,150.0,8.992e-05,2]
[340219968,1728853202285,150.0,8.992e-05,2]
[340219969,1728853202510,150.0,8.992e-05,2]
[340219970,1728853202732,150.0,8.992e-05,2]
[340219971,1728853202934,150.0,8.992e-05,2]
[340219972,1728853203150,150.0,8.992e-05,2]
[340219973,1728853203357,150.0,8.992e-05,2]
[340219974,1728853203715,150.0,8.992e-05,2]
[340219975,1728853203952,150.0,8.992e-05,2]
[340219976,1728853204166,150.0,8.992e-05,2]
[340219977,1728853204355,150.0,8.992e-05,2]
[340219978,1728853204569,150.0,8.992e-05,2]
[340219979,1728853204795,150.0,8.992e-05,2]
[340219980,1728853205003,150.0,8.992e-05,2]
[340219981,1728853205461,150.0,8.992e-05,2]
[340219982,1728853205657,150.0,8.992e-05,2]
[340219983,1728853205878,150.0,8.992e-05,2]
[340219984,1728853206082,150.0,8.992e-05,2]
[340219985,1728853206291,150.0,8.992e-05,2]
[340219986,1728853206503,150.0,8.992e-05,2]
[340219987,1728853206702,150.0,8.992e-05,2]
[340219988,1728853206879,150.0,8.992e-05,2]
[340219989,1728853207059,150.0,8.992e-05,2]
[340219990,1728853207225,150.0,8.992e-05,2]
[340219991,1728853207427,150.0,8.992e-05,2]
[340219992,1728853207764,209.97861714,8.992e-05,2]
[340219993,1728853237843,500.0,0.00010186,2]
[340219994,1728853256652,354.92,0.00010097,2]
[340219995,1728853272355,351.26,0.00010085,2]
[340219996,1728853362230,159.66,0.0001009,2]
[340219997,1728853425637,900.0,0.00027,60]
[340219998,1728853426519,279.24775,0.00010084,2]
[340219999,1728853429598,900.0,0.00027,60]
[340220000,1728853430430,900.0,0.00027,60]
[340220001,1728853431885,900.0,0.00027,60]
[340220002,1728853505329,250.0,9.963e-05,2]
[340220003,1728853506256,177.04,7.99e-05,2]
[340220004,1728853513297,230.27365888,9.888e-05,2]
[340220005,1728853523651,1343.53,0.00010079,2]
[340220006,1728853540276,500.011406,0.00027,60]
[340220007,1728853541713,500.011406,0.00027,60]
[340220008,1728853544725,500.011406,0.00027,60]
[340220009,1728853547143,192.12,0.00010031,2]
[340220010,1728853548902,1000.0,0.00010031,2]
[340220011,1728853566708,550.0,0.0001,2]
[340220012,1728853573146,588.81,8.219e-05,2]
[340220013,1728853596397,250.011406,0.00027,60]
[340220014,1728853597255,1852.42,0.00010001,2]
[340220015,1728853597649,250.0,0.00010001,2]
[340220016,1728853624248,200.0,0.00010052,2]
[340220031,1728853647847,190.59,0.00010104,2]
[340220032,1728853651176,545.09,0.00010104,2]
[340220033,1728853668942,1958.28,0.00010104,2]
[340220046,1728853831649,-337.34931894,0.00010268,2]
[340220047,1728853831665,-562.21440665,0.00010268,2]
[340220048,1728853831677,-4212.6311127,0.00010268,2]
[340220049,1728853831703,-2045.75766083,0.00010268,2]
[340220050,1728853831714,-5221.07153573,0.00010268,2]
[340220051,1728853831725,-9951.80583293,0.00010268,2]
[340220052,1728853831736,-1569.17013222,0.00010268,2]
[340220053,1728853831745,-588.81,0.00010477,2]
[340220054,1728853831754,-180.64,0.0001061,2]
[340220055,1728853831763,-150.0,0.00010661,2]
[340220056,1728853831772,-196.9,0.0001069,2]
[340220057,1728853831781,-250.82,0.00010748,2]
[340220058,1728853831791,-2320.35,0.00010748,2]
[340220059,1728853831800,-501.77689152,0.00010773,2]
[340220060,1728853831809,-500.0,0.00010773,2]
[340220061,1728853831819,-810.0369076,0.00010773,2]
[340220062,1728853831832,-470.7130924,0.00010773,2]
[340220063,1728853831841,-8015.33223837,0.00010773,2]
[340220064,1728853831852,-633.39617763,0.00010773,2]
[340220065,1728853831862,-400.0,0.00010773,2]
[340220066,1728853831881,-551.87325084,0.00010773,2]
[340220067,1728853831892,-399.38833316,0.00010773,2]
[340220068,1728853831902,-886.31449739,0.00010773,2]
[340220069,1728853831913,-357.46371413,0.00010773,2]
[340220070,1728853831924,-3952.11216265,0.00010773,2]
[340220071,1728853831935,-7812.65962583,0.00010773,2]
[340220072,1728853831943,-499.99,0.00010773,2]
[340220073,1728853831952,-306.44469223,0.00010773,2]
[340220074,1728853831961,-500.0,0.00010773,2]
[340220075,1728853831970,-575.21,0.00010773,2]
[340220076,1728853831979,-150.99,0.00010791,2]
[340220077,1728853831988,-151.137,0.000108,2]
[340220078,1728853831997,-157.078,0.000108,2]
[340220079,1728853832007,-165.826,0.000108,2]
[340220081,1728853832016,-83.11398764,0.000108,2]
[340220083,1728853832027,-628.42,0.000108,2]
[340220085,1728853832037,-416.72761236,0.000108,2]
[340220086,1728853832046,-3946.58079973,0.000108,2]
[340220087,1728853832057,-737.5985368,0.000108,2]
[340220088,1728853832099,-11574.20259887,0.000108,2]
[340220089,1728853832110,-20460.77923751,0.000108,2]
[340220090,1728853832121,-1274.32993384,0.000108,2]
[340220091,1728853832133,-588.74678369,0.000108,2]
[340220092,1728853832145,-1974.18309637,0.000108,2]
[340220093,1728853832156,-2248.6741294,0.000108,2]
[340220094,1728853832169,-750.26546194,0.000108,2]
[340220095,1728853832180,-1266.60175907,0.000108,2]
[340220096,1728853832191,-1644.32044716,0.000108,2]
[340220097,1728853832202,-2984.3221489,0.000108,2]
[340220098,1728853832219,-12379.10156961,0.000108,2]
[340220099,1728853832231,-351.89855854,0.000108,2]
[340220100,1728853832243,-2498.3477175,0.000108,2]
[340220101,1728853832255,-3372.54487743,0.000108,2]
[340220102,1728853832267,-2285.89488508,0.000108,2]
[340220103,1728853832280,-983.93,0.000108,2]
[340220104,1728853832291,-700.0,0.000108,2]
[340220105,1728853832302,-664.57727663,0.000108,2]
[340220106,1728853832314,-117481.33918193,0.000108,2]
[340220107,1728853832324,-161.53608137,0.00010873,2]
[340220108,1728853832334,-272.8281,0.00010899,2]
[340220109,1728853832343,-398.9263,0.00010899,2]
[340220110,1728853832352,-493.199,0.00010899,2]
[340220111,1728853832361,-10208.04530803,0.00010899,2]
[340220112,1728853832371,-340.3921,0.000109,2]
[340220113,1728853832381,-26268.555,0.000109,2]
[340220114,1728853832391,-9251.3322,0.000109,2]
[340220115,1728853832400,-3336.2739,0.000109,2]
[340220116,1728853832409,-160.98897749,0.000109,2]
[340220117,1728853832418,-1704.2607,0.000109,2]
[340220118,1728853832427,-60399.3807,0.000109,2]
[340220119,1728853832437,-4986.3405,0.000109,2]
[340220120,1728853832446,-316.67134172,0.000109,2]
[340220121,1728853832455,-748.24,0.000109,2]
[340220122,1728853832464,-501.48945397,0.000109,2]
[340220123,1728853832473,-501.48945394,0.000109,2]
[340220124,1728853832482,-501.48945394,0.000109,2]
[340220125,1728853832491,-501.48945394,0.000109,2]
[340220126,1728853832500,-501.48945394,0.000109,2]
[340220127,1728853832509,-501.48945394,0.000109,2]
[340220128,1728853832518,-501.48945394,0.000109,2]
[340220129,1728853832528,-501.48945394,0.000109,2]
[340220130,1728853832538,-1765.87125428,0.000109,2]
[340220131,1728853832549,-5426.00978866,0.000109,2]
[340220132,1728853832558,-186.01079357,0.000109,2]
[340220133,1728853832567,-500.0,0.00010958,2]
[340220134,1728853832576,-350.79867611,0.00010958,2]
[340220135,1728853832585,-500.0,0.00010958,2]
[340220136,1728853832597,-500.0,0.00010958,2]
[340220137,1728853832606,-500.0,0.00010958,2]
[340220138,1728853832616,-500.0,0.00010958,2]
[340220139,1728853832625,-500.0,0.00010958,2]
[340220140,1728853832635,-500.0,0.00010958,2]
[340220141,1728853832645,-500.0,0.00010958,2]
[340220142,1728853832655,-500.0,0.00010958,2]
[340220143,1728853832665,-500.0,0.00010958,2]
[340220144,1728853832675,-500.0,0.00010958,2]
[340220145,1728853832683,-509.26264301,0.00010958,2]
[340220146,1728853832693,-500.0,0.00010958,2]
[340220147,1728853832703,-500.0,0.00010958,2]
[340220148,1728853832713,-500.0,0.00010958,2]
[340220149,1728853832724,-500.0,0.00010958,2]
[340220150,1728853832735,-224.95901824,0.00010958,2]
[340220151,1728853832745,-500.0,0.00010958,2]
[340220152,1728853832756,-500.0,0.00010958,2]
[340220153,1728853832766,-500.0,0.00010958,2]
[340220154,1728853832775,-500.0,0.00010958,2]
[340220155,1728853832783,-500.0,0.00010958,2]
[340220156,1728853832793,-500.0,0.00010958,2]
[340220157,1728853832802,-500.0,0.00010958,2]
[340220158,1728853832811,-500.0,0.00010958,2]
[340220159,1728853832821,-500.0,0.00010958,2]
[340220160,1728853832830,-500.0,0.00010958,2]
[340220161,1728853832839,-500.0,0.00010958,2]
[340220162,1728853832849,-500.0,0.00010958,2]
[340220163,1728853832858,-500.0,0.00010958,2]
[340220164,1728853832867,-500.0,0.00010958,2]
[340220165,1728853832876,-500.0,0.00010958,2]
[340220166,1728853832885,-500.0,0.00010958,2]
[340220167,1728853832894,-500.0,0.00010958,2]
[340220168,1728853832903,-500.0,0.00010958,2]
[340220169,1728853832912,-500.0,0.00010958,2]
[340220170,1728853832921,-500.0,0.00010958,2]
[340220171,1728853832930,-500.0,0.00010958,2]
[340220172,1728853832939,-500.0,0.00010958,2]
[340220173,1728853832949,-500.0,0.00010958,2]
[340220174,1728853832958,-500.0,0.00010958,2]
[340220175,1728853832967,-500.0,0.00010958,2]
[340220176,1728853832977,-500.0,0.00010958,2]
[340220177,1728853832986,-500.0,0.00010958,2]
[340220178,1728853832995,-500.0,0.00010958,2]
[340220179,1728853833004,-500.0,0.00010958,2]
[340220180,1728853833013,-500.0,0.00010958,2]
[340220181,1728853833022,-500.0,0.00010958,2]
[340220182,1728853833031,-200.0,0.00010958,2]
[340220183,1728853833041,-500.0,0.00010958,2]
[340220184,1728853833050,-500.0,0.00010958,2]
[340220185,1728853833059,-300.80056304,0.00010958,2]
[340220186,1728853833068,-500.0,0.00010958,2]
[340220187,1728853833078,-500.0,0.00010958,2]
[340220188,1728853833087,-500.0,0.00010958,2]
[340220189,1728853833097,-500.0,0.00010958,2]
[340220190,1728853833107,-500.0,0.00010958,2]
[340220191,1728853833116,-160.31,0.00010959,2]
[340220192,1728853833125,-1500.0,0.00010959,2]
[340220193,1728853833135,-159.51,0.00010959,2]
[340220194,1728853833144,-150.0,0.00010959,2]
[340220195,1728853833153,-250.0,0.00010959,2]
[340220196,1728853833162,-429.29,0.00010959,2]
[340220197,1728853833172,-500.0,0.00010959,2]
[340220198,1728853833182,-500.0,0.00010996,2]
[340220199,1728853833191,-500.0,0.00010996,2]
[340220200,1728853833200,-500.0,0.00010996,2]
[340220201,1728853833209,-500.0,0.00010996,2]
[340220202,1728853833218,-500.0,0.00010996,2]
[340220203,1728853833228,-500.0,0.00010996,2]
[340220204,1728853833237,-500.0,0.00010996,2]
[340220205,1728853833247,-500.0,0.00010996,2]
[340220206,1728853833256,-500.0,0.00010996,2]
[340220207,1728853833266,-500.0,0.00010996,2]
[340220208,1728853833275,-500.0,0.00010996,2]
[340220209,1728853833284,-607.89678646,0.00010996,2]
[340220210,1728853833294,-500.0,0.00010996,2]
[340220211,1728853833303,-500.0,0.00010996,2]
[340220212,1728853833313,-500.0,0.00010996,2]
[340220213,1728853833322,-500.0,0.00010996,2]
[340220214,1728853833336,-500.0,0.00010996,2]
[340220215,1728853833346,-500.0,0.00010996,2]
[340220216,1728853833355,-500.0,0.00010996,2]
[340220217,1728853833364,-500.0,0.00010996,2]
[340220218,1728853833374,-555.08,0.00010996,2]
[340220219,1728853833383,-500.0,0.00010996,2]
[340220220,1728853833391,-500.0,0.00010996,2]
[340220221,1728853833401,-500.0,0.00010996,2]
[340220222,1728853833410,-527.69803395,0.00010996,2]
[340220223,1728853833419,-500.0,0.00010996,2]
[340220224,1728853833428,-500.0,0.00010996,2]
[340220225,1728853833438,-500.0,0.00010996,2]
[340220226,1728853833447,-633.28519083,0.00010996,2]
[340220227,1728853833457,-500.0,0.00010996,2]
[340220228,1728853833467,-500.0,0.00010996,2]
[340220229,1728853833477,-500.0,0.00010996,2]
[340220230,1728853833486,-500.0,0.00010996,2]
[340220231,1728853833496,-500.0,0.00010996,2]
[340220232,1728853833506,-500.0,0.00010996,2]